bitfinex/quotes_BTCUSD_20220213
["timestamp","ask_amount","ask_price","bid_price","bid_amount"]
[1644770756751,0.0003865,42331.0,42329.0,0.109069]
[1644770756948,0.0003865,42331.0,42330.0,1.2973]
[1644770757151,0.01,42339.0,42330.0,0.18184012]
[1644770757350,0.00013879,42332.0,42330.0,0.18184012]
[1644770758354,0.24943477,42337.0,42330.0,0.18184012]
[1644770758552,0.00038941,42333.0,42330.0,0.18184012]
[1644770758802,0.00038941,42333.0,42332.0,0.332736]
[1644770759002,0.00038941,42333.0,42330.0,0.39015898]
[1644770759205,0.00038941,42333.0,42330.0,1.83261012]
[1644770759406,0.00038941,42333.0,42332.0,1.3917]
[1644770759604,0.01,42339.0,42334.0,1.25]
[1644770759804,0.01,42339.0,42337.0,1.641793]
[1644770760208,0.01,42339.0,42338.0,1.582736]
[1644770760505,0.0092,42339.0,42338.0,1.782736]
[1644770760705,0.0092,42339.0,42338.0,0.580036]
[1644770760905,0.0092,42339.0,42338.0,0.1973]
[1644770761105,0.0092,42339.0,42338.0,1.830036]
[1644770761307,0.00023277,42340.0,42339.0,1.95]
[1644770761515,0.00155721,42347.0,42342.0,1.25]
[1644770761705,0.00155721,42347.0,42341.0,0.8]
[1644770761706,0.00155721,42347.0,42343.0,1.72339649]
[1644770761905,0.025,42349.0,42344.0,0.0473]
[1644770762557,0.01,42349.0,42345.0,0.332736]
[1644770762754,0.01,42349.0,42347.0,0.0729201]
[1644770762952,0.01,42349.0,42347.0,0.1229201]
[1644770763150,0.01,42349.0,42348.0,0.18454012]
[1644770763349,0.01,42349.0,42348.0,0.13454012]
[1644770763753,0.01,42349.0,42348.0,0.13513023]
[1644770764752,0.09535489,42349.0,42348.0,0.13513023]
[1644770765152,0.01,42349.0,42348.0,0.13513023]
[1644770767504,0.01,42349.0,42348.0,0.46786623]
[1644770768111,0.01,42349.0,42348.0,0.51786623]
[1644770768405,0.00038989,42351.0,42349.0,0.01999999]
[1644770768606,0.00038989,42351.0,42350.0,0.332736]
[1644770768804,0.00038989,42351.0,42349.0,0.01999999]
[1644770769004,0.00038989,42351.0,42350.0,0.46727612]
[1644770769205,0.23296592,42355.0,42350.0,0.46727612]
[1644770769504,0.23296592,42355.0,42350.0,0.13454012]
[1644770769505,0.00013616,42352.0,42350.0,0.13454012]
[1644770770354,0.01,42359.0,42351.0,0.332736]
[1644770770560,0.00990902,42359.0,42350.0,0.13454012]
[1644770770754,0.00038929,42353.0,42350.0,0.13454012]
[1644770770954,0.00038929,42353.0,42351.0,0.332736]
[1644770771154,0.00038929,42353.0,42350.0,0.13454012]
[1644770771553,0.30276027,42359.0,42350.0,0.13454012]
[1644770771756,0.00038928,42354.0,42350.0,0.13454012]
[1644770772155,0.05944328,42354.0,42350.0,0.13454012]
[1644770772654,0.00038928,42354.0,42350.0,0.13454012]
[1644770772852,0.63082757,42359.0,42350.0,0.13454012]
[1644770773057,0.00038928,42354.0,42350.0,0.13454012]
[1644770773903,0.00038928,42354.0,42351.0,0.332736]
[1644770774102,0.00990902,42359.0,42349.0,0.0205901]
[1644770774103,0.30990902,42359.0,42349.0,0.0205901]
[1644770774303,0.00038928,42354.0,42352.0,0.13454012]
[1644770775303,0.33183089,42359.0,42352.0,0.13454012]
[1644770775502,0.00038927,42355.0,42352.0,0.13454012]
[1644770776405,0.118107,42358.0,42352.0,0.21004635]
[1644770776406,0.00017,42353.0,42352.0,0.21004635]
[1644770776607,0.00017,42353.0,42352.0,0.46727612]
[1644770777005,0.00017,42353.0,42352.0,0.51457612]
[1644770777205,0.00017,42353.0,42352.0,0.18184012]
[1644770777407,0.00017,42353.0,42352.0,0.13454012]
[1644770778057,0.00017,42353.0,42352.0,0.46727612]
[1644770778955,0.00017,42353.0,42352.0,0.13454012]
[1644770779157,0.118093,42366.0,42361.0,0.2104007]
[1644770779358,0.05,42363.0,42361.0,0.2104007]
[1644770779859,0.05,42363.0,42362.0,0.13454012]
[1644770779860,0.118093,42363.0,42362.0,0.13454012]
[1644770780256,0.168093,42363.0,42362.0,0.13454012]
[1644770782421,0.39129118,42363.0,42362.0,0.13454012]
[1644770782622,0.118093,42363.0,42362.0,0.13454012]
[1644770783722,0.113093,42363.0,42362.0,0.13454012]
[1644770783919,0.38289988,42364.0,42362.0,0.13454012]
[1644770784322,0.38289988,42364.0,42363.0,0.632736]
[1644770784323,0.00023288,42364.0,42363.0,0.632736]
[1644770784524,0.00038922,42365.0,42363.0,0.632736]
[1644770784722,0.00038922,42365.0,42364.0,0.332736]
[1644770784923,0.00023288,42365.0,42364.0,0.13454012]
[1644770785163,0.00038921,42366.0,42364.0,0.13454012]
[1644770785363,0.00038921,42366.0,42365.0,0.332736]
[1644770785567,0.00038921,42366.0,42364.0,0.13454012]
[1644770785568,0.05966009,42366.0,42364.0,0.13454012]
[1644770785764,0.05942721,42366.0,42364.0,0.13454012]
[1644770785965,0.059038,42366.0,42364.0,0.13454012]
[1644770786168,0.00023288,42366.0,42365.0,0.332736]
[1644770786364,0.10048417,42367.0,42364.0,0.13454012]
[1644770786567,0.10025129,42367.0,42364.0,0.13454012]
[1644770786764,0.00035129,42367.0,42364.0,0.13454012]
[1644770786965,0.0999,42366.0,42364.0,0.13454012]
[1644770787165,0.10013288,42366.0,42364.0,0.13454012]
[1644770787363,0.0999,42366.0,42364.0,0.13454012]
[1644770787765,0.10013288,42366.0,42364.0,0.46727612]
[1644770787965,0.00023288,42366.0,42364.0,0.13454012]
[1644770788168,0.00035129,42367.0,42364.0,0.13454012]
[1644770788169,0.00035129,42367.0,42365.0,0.60951476]
[1644770788367,0.00023288,42368.0,42364.0,0.13454012]
[1644770788568,0.01,42369.0,42364.0,0.13454012]
[1644770788807,0.10025129,42367.0,42364.0,0.13454012]
[1644770789004,0.059037,42366.0,42364.0,0.13454012]
[1644770789603,0.27617719,42366.0,42364.0,0.13454012]
[1644770789802,0.27594431,42366.0,42364.0,0.13454012]
[1644770790003,0.27594431,42366.0,42363.0,0.00059011]
[1644770790205,0.27617719,42366.0,42364.0,0.06721649]
[1644770790406,0.27617719,42366.0,42364.0,0.13454012]
[1644770791005,0.27594431,42366.0,42364.0,0.13454012]
[1644770791412,0.27617719,42366.0,42364.0,0.13454012]
[1644770791709,0.28613989,42365.0,42364.0,0.13454012]
[1644770791906,0.28613989,42365.0,42363.0,0.00059011]
[1644770791907,1.0,42364.0,42363.0,0.00059011]
[1644770792108,1.34377551,42364.0,42363.0,0.00059011]
[1644770792311,1.39107551,42364.0,42363.0,0.00059011]
[1644770792554,0.39107551,42364.0,42363.0,0.00059011]
[1644770793149,0.4586115,42364.0,42363.0,0.00059011]
[1644770795052,0.39107551,42364.0,42363.0,0.00059011]
[1644770795252,0.0473,42364.0,42363.0,0.00059011]
[1644770796510,0.0973,42364.0,42363.0,0.00059011]
[1644770797908,0.00023288,42365.0,42363.0,0.00059011]
[1644770798109,0.27630996,42366.0,42363.0,0.00059011]
[1644770798110,0.21690731,42366.0,42363.0,0.00059011]
[1644770798307,0.00023288,42365.0,42363.0,0.00059011]
[1644770798506,0.21749385,42366.0,42363.0,0.00059011]
[1644770798706,0.00023288,42365.0,42363.0,0.00059011]
[1644770798908,0.21726097,42366.0,42363.0,0.00059011]
[1644770798909,0.28176981,42366.0,42363.0,0.00059011]
[1644770799110,0.00023288,42365.0,42363.0,0.00059011]
[1644770799308,0.21726097,42366.0,42363.0,0.00059011]
[1644770799309,0.27594331,42366.0,42363.0,0.00059011]
[1644770799507,0.00023288,42365.0,42363.0,0.00059011]
[1644770799708,0.27594331,42366.0,42363.0,0.00059011]
[1644770799709,0.27617619,42366.0,42363.0,0.00059011]
[1644770800153,0.35846859,42366.0,42363.0,0.00059011]
[1644770800752,0.47656259,42366.0,42363.0,0.00059011]
[1644770801155,0.41751459,42366.0,42363.0,0.00059011]
[1644770801662,0.0473,42365.0,42363.0,0.00059011]
[1644770801856,0.04753288,42365.0,42363.0,0.00059011]
[1644770802258,0.35272585,42364.0,42363.0,0.00059011]
[1644770802456,0.40002585,42364.0,42363.0,0.00059011]
[1644770803156,0.0473,42364.0,42363.0,0.00059011]
[1644770803801,0.059058,42361.0,42350.0,0.26216887]
[1644770804004,0.059058,42361.0,42349.0,0.01999999]
[1644770804005,0.05,42357.0,42349.0,0.01999999]
[1644770804207,0.0473,42356.0,42349.0,0.01999999]
[1644770804602,0.04753288,42356.0,42349.0,0.01999999]
[1644770804804,0.26315137,42355.0,42349.0,0.01999999]
[1644770805002,0.0473,42354.0,42349.0,0.01999999]
[1644770805204,0.11813,42353.0,42349.0,0.01999999]
[1644770805604,0.11836288,42353.0,42349.0,0.01999999]
[1644770805803,0.0473,42352.0,42349.0,0.01999999]
[1644770806003,0.04753288,42352.0,42349.0,0.01999999]
[1644770806205,0.059066,42351.0,42349.0,0.01999999]
[1644770806407,0.0473,42350.0,42349.0,0.01999999]
[1644770806609,0.165434,42350.0,42349.0,0.01999999]
[1644770807409,1.0,42349.0,42347.0,0.0001661]
[1644770807659,0.30469764,42348.0,42347.0,0.0001661]
[1644770808456,0.55537876,42348.0,42347.0,0.0001661]
[1644770812404,0.84082269,42348.0,42347.0,0.0001661]
[1644770813808,0.55537876,42348.0,42347.0,0.0001661]
[1644770814709,0.84372677,42348.0,42347.0,0.0001661]
[1644770815561,0.84372677,42348.0,42347.0,0.0249661]
[1644770816659,0.55537876,42348.0,42347.0,0.0249661]
[1644770817560,0.01924989,42348.0,42347.0,0.0249661]
[1644770817761,0.24315302,42348.0,42347.0,0.0249661]
[1644770817961,0.29045302,42348.0,42347.0,0.0249661]
[1644770818361,0.34952602,42348.0,42347.0,0.0249661]
[1644770819003,0.34504102,42348.0,42347.0,0.0249661]
[1644770819504,0.63276429,42348.0,42347.0,0.0249661]
[1644770823655,0.34504102,42348.0,42347.0,0.0249661]
[1644770829201,0.29774102,42348.0,42347.0,0.0249661]
[1644770830458,0.059073,42348.0,42347.0,0.0249661]
[1644770830852,0.00038848,42350.0,42347.0,0.0249661]
[1644770831654,0.43583275,42354.0,42347.0,0.0249661]
[1644770831952,0.059054,42350.0,42347.0,0.0249661]
[1644770832152,0.00013616,42351.0,42347.0,0.0249661]
[1644770832957,0.61299575,42354.0,42347.0,0.0249661]
[1644770833155,0.00038819,42351.0,42347.0,0.0249661]
[1644770833354,0.05944119,42351.0,42347.0,0.0249661]
[1644770834010,0.059053,42351.0,42347.0,0.0249661]
[1644770834210,0.00038819,42351.0,42347.0,0.0249661]
[1644770835214,0.33630906,42357.0,42349.0,0.08079113]
[1644770835721,0.00035958,42351.0,42350.0,0.3]
[1644770835916,0.00035958,42351.0,42349.0,0.08079113]
[1644770836518,0.00023288,42358.0,42349.0,0.08079113]
[1644770836714,0.0014381,42358.0,42357.0,0.21632607]
[1644770837763,0.00023288,42360.0,42357.0,0.49511024]
[1644770837964,0.00035958,42360.0,42358.0,0.40815601]
[1644770838164,0.00035958,42360.0,42359.0,0.28696518]
[1644770839063,0.00023288,42365.0,42359.0,0.28696518]
[1644770839064,0.00035958,42362.0,42359.0,0.28696518]
[1644770839263,0.00035958,42362.0,42358.0,0.08154237]
[1644770839468,0.00035958,42362.0,42359.0,0.26418806]
[1644770839865,0.00035958,42362.0,42358.0,0.08154237]
[1644770840064,0.00023288,42367.0,42359.0,0.59552734]
[1644770840264,0.00036397,42363.0,42359.0,0.26279134]
[1644770841066,0.00036397,42363.0,42357.0,0.21632607]
[1644770841313,0.00023288,42366.0,42357.0,0.21632607]
[1644770841514,0.00036397,42363.0,42357.0,0.21632607]
[1644770841716,0.00036397,42363.0,42357.0,0.27536007]
[1644770842115,0.00036397,42363.0,42359.0,0.08847296]
[1644770842517,0.24477413,42369.0,42357.0,0.27536007]
[1644770842518,0.00023288,42366.0,42357.0,0.27536007]
[1644770842717,0.24331847,42369.0,42357.0,0.27536007]
[1644770842718,0.00023288,42367.0,42357.0,0.21632607]
[1644770843016,0.00036397,42363.0,42357.0,0.21632607]
[1644770843616,0.00023288,42368.0,42357.0,0.21632607]
[1644770843820,0.00023288,42368.0,42359.0,0.08597968]
[1644770844019,0.00036336,42362.0,42359.0,0.08597968]
[1644770844919,0.00023288,42367.0,42359.0,0.08597968]
[1644770845157,0.00023288,42367.0,42357.0,0.21632607]
[1644770845158,0.00036336,42363.0,42357.0,0.21632607]
[1644770845358,0.00036336,42363.0,42357.0,0.27536007]
[1644770845758,0.00036336,42363.0,42358.0,0.26308075]
[1644770845961,0.00036336,42363.0,42358.0,0.26170256]
[1644770846161,0.00023288,42364.0,42357.0,0.059034]
[1644770846361,0.00036336,42363.0,42358.0,0.25997942]
[1644770846659,0.00036336,42363.0,42358.0,0.3274339]
[1644770846861,0.00036336,42363.0,42358.0,0.3864669]
[1644770847059,0.00059624,42363.0,42358.0,0.3864669]
[1644770847261,0.00023288,42366.0,42358.0,0.3864669]
[1644770847460,0.00036345,42363.0,42359.0,0.26232718]
[1644770847658,0.00036345,42363.0,42359.0,0.2743725]
[1644770847859,0.00036345,42363.0,42359.0,0.3334035]
[1644770848060,0.00036345,42363.0,42358.0,0.00016606]
[1644770848463,0.22155321,42366.0,42358.0,0.00016606]
[1644770848661,0.00036345,42363.0,42358.0,0.00016606]
[1644770848905,0.00036345,42363.0,42358.0,0.0752167]
[1644770849105,0.05882017,42368.0,42358.0,0.39656454]
[1644770849305,0.26720092,42369.0,42358.0,0.39656454]
[1644770849306,0.01136907,42369.0,42358.0,0.39656454]
[1644770849703,0.00991549,42369.0,42358.0,0.39656454]
[1644770850104,0.00991549,42369.0,42358.0,0.45559454]
[1644770850305,0.00991549,42369.0,42365.0,0.25477648]
[1644770851107,0.01002723,42369.0,42365.0,0.25477648]
[1644770852105,0.01002723,42369.0,42361.0,0.26333839]
[1644770852106,0.00991549,42369.0,42361.0,0.26333839]
[1644770852307,0.01027916,42369.0,42361.0,0.26333839]
[1644770852561,0.01027916,42369.0,42361.0,0.38138839]
[1644770853057,0.01027916,42369.0,42367.0,0.21593486]
[1644770853258,0.00991549,42369.0,42367.0,0.21593486]
[1644770855157,0.00991549,42369.0,42368.0,0.25982288]
[1644770856060,0.00036338,42371.0,42369.0,0.02974647]
[1644770856906,0.03,42373.0,42369.0,0.08876447]
[1644770857106,0.03,42373.0,42369.0,0.02974647]
[1644770857309,0.00036337,42373.0,42372.0,0.05]
[1644770857515,0.00937111,42379.0,42374.0,1.582736]
[1644770857706,0.00937111,42379.0,42375.0,0.380036]
[1644770857907,0.00937111,42379.0,42374.0,0.059013]
[1644770858305,0.00937111,42379.0,42371.0,0.3]
[1644770858505,0.00937111,42379.0,42372.0,0.332736]
[1644770858912,0.00937111,42379.0,42370.0,0.1155]
[1644770860157,0.20234117,42374.0,42370.0,0.1155]
[1644770860455,0.20234117,42374.0,42369.0,0.02974647]
[1644770860858,0.20234117,42374.0,42370.0,0.00025356]
[1644770861857,0.20234117,42374.0,42369.0,0.02974647]
[1644770862057,0.20234117,42374.0,42370.0,0.00038809]
[1644770862658,0.2848649,42373.0,42370.0,0.00038809]
[1644770862856,0.2850993,42373.0,42370.0,0.00038809]
[1644770863055,0.2850993,42373.0,42369.0,0.02974647]
[1644770863256,0.2850993,42373.0,42369.0,0.03013456]
[1644770863456,0.05893,42372.0,42369.0,0.03013456]
[1644770863656,0.0591644,42372.0,42369.0,0.03013456]
[1644770863908,0.0002344,42372.0,42369.0,0.03013456]
[1644770864111,0.20234117,42374.0,42369.0,0.02974647]
[1644770864112,0.0002344,42373.0,42369.0,0.02974647]
[1644770864507,0.059027,42372.0,42369.0,0.02974647]
[1644770864708,0.0002344,42373.0,42369.0,0.02974647]
[1644770864907,0.20257557,42374.0,42369.0,0.02974647]
[1644770865306,0.20234117,42374.0,42369.0,0.02974647]
[1644770865508,0.26136517,42374.0,42369.0,0.02974647]
[1644770865707,0.26136517,42374.0,42369.0,0.03013456]
[1644770865907,0.26159957,42374.0,42369.0,0.03013456]
[1644770866711,0.26159957,42374.0,42369.0,0.02974647]
[1644770866907,0.26159957,42374.0,42369.0,0.03013456]
[1644770867310,0.32062657,42374.0,42369.0,0.03013456]
[1644770867563,0.059027,42373.0,42369.0,0.03013456]
[1644770867856,0.0592614,42373.0,42369.0,0.02974647]
[1644770868057,0.0592614,42373.0,42369.0,0.03013457]
[1644770868558,0.1182924,42373.0,42369.0,0.03013457]
[1644770868957,0.1182924,42373.0,42369.0,0.02974647]
[1644770869158,0.1182924,42373.0,42369.0,0.03013457]
[1644770869361,0.0592614,42373.0,42369.0,0.03013457]
[1644770869761,0.0002344,42373.0,42369.0,0.03013457]
[1644770869959,0.33780126,42377.0,42369.0,0.03013457]
[1644770869960,0.0002344,42374.0,42369.0,0.03013457]
[1644770870159,0.0002344,42376.0,42369.0,0.02974647]
[1644770870360,0.3,42380.0,42369.0,0.03013456]
[1644770870361,0.0002344,42378.0,42369.0,0.03013456]
[1644770870562,0.00960551,42379.0,42369.0,0.03013456]
[1644770870760,0.24288113,42374.0,42369.0,0.03013456]
[1644770871407,0.24288113,42374.0,42369.0,0.02974647]
[1644770871615,0.24288113,42374.0,42369.0,0.03013456]
[1644770872012,0.05903,42373.0,42369.0,0.03013456]
[1644770872210,0.0592644,42373.0,42369.0,0.03013456]
[1644770872611,0.0592644,42373.0,42369.0,0.02974647]
[1644770872811,0.05903,42373.0,42369.0,0.03013457]
[1644770873812,0.05903,42373.0,42369.0,0.02974647]
[1644770874012,0.05903,42373.0,42369.0,0.03013457]
[1644770875153,0.05903,42373.0,42369.0,0.03000053]
[1644770876153,0.05903,42373.0,42369.0,0.02974647]
[1644770876354,0.05903,42373.0,42369.0,0.03000053]
[1644770877156,0.05903,42372.0,42369.0,0.03000053]
[1644770877460,0.05903,42371.0,42369.0,0.02974647]
[1644770880606,0.118062,42371.0,42369.0,0.02974647]
[1644770881008,0.05903,42371.0,42369.0,0.02974647]
[1644770884254,0.05903,42373.0,42369.0,0.02974647]
[1644770884654,0.05903,42373.0,42369.0,0.02968155]
[1644770884855,0.05903,42373.0,42369.0,0.03007064]
[1644770885260,0.059032,42372.0,42369.0,0.03007064]
[1644770885453,0.059033,42371.0,42369.0,0.03007064]
[1644770885856,0.059033,42371.0,42369.0,0.02968155]
[1644770886303,0.30191113,42374.0,42369.0,0.02968155]
[1644770887307,0.16071927,42375.0,42369.0,0.03007064]
[1644770887606,0.24423559,42376.0,42369.0,0.03007064]
[1644770888207,0.04753441,42377.0,42369.0,0.02968155]
[1644770888408,0.059026,42375.0,42370.0,0.00038908]
[1644770888606,0.118052,42375.0,42370.0,0.00038908]
[1644770889007,0.059026,42375.0,42370.0,0.00038908]
[1644770889409,0.059026,42375.0,42369.0,0.25984908]
[1644770889609,0.059026,42374.0,42370.0,0.00038908]
[1644770889810,0.118054,42374.0,42370.0,0.00038908]
[1644770890063,0.05893637,42374.0,42370.0,0.00038908]
[1644770890464,0.33748516,42378.0,42370.0,0.00038908]
[1644770890658,0.33748516,42378.0,42369.0,0.02968155]
[1644770890859,0.08986857,42374.0,42370.0,0.00038908]
[1644770891460,0.33748516,42378.0,42370.0,0.00038908]
[1644770891862,0.33748516,42378.0,42369.0,0.02968155]
[1644770892062,0.21943116,42378.0,42372.0,0.00038907]
[1644770893068,0.21943116,42378.0,42371.0,0.24138619]
[1644770893261,0.21943116,42378.0,42373.0,0.00038907]
[1644770893461,0.059025,42377.0,42373.0,0.00038907]
[1644770894306,0.059025,42375.0,42369.0,0.02968155]
[1644770894505,0.059025,42375.0,42373.0,0.00038907]
[1644770895507,0.059025,42375.0,42369.0,0.02968155]
[1644770895710,0.118052,42375.0,42372.0,0.00038907]
[1644770896007,0.059031,42374.0,42372.0,0.00038907]
[1644770896709,0.11806,42374.0,42369.0,0.02968155]
[1644770896908,0.11806,42374.0,42371.0,0.00038908]
[1644770897108,0.059028,42373.0,42371.0,0.00038908]
[1644770897558,0.28461761,42372.0,42371.0,0.00038908]
[1644770897961,0.28461761,42372.0,42369.0,0.03007064]
[1644770897962,0.24334759,42371.0,42369.0,0.03007064]
[1644770898161,0.30238359,42371.0,42369.0,0.03007064]
[1644770898363,0.23187563,42370.0,42369.0,0.03007064]
[1644770898560,0.35841278,42370.0,42369.0,0.03007064]
[1644770898757,0.32917563,42370.0,42369.0,0.03007064]
[1644770898957,0.32917563,42370.0,42369.0,0.02968155]
[1644770898958,0.27917563,42370.0,42369.0,0.02968155]
[1644770899160,0.4398949,42370.0,42369.0,0.02968155]
[1644770899359,0.27917563,42370.0,42369.0,0.02968155]
[1644770899960,0.35316912,42370.0,42369.0,0.03096981]
[1644770900361,0.66136712,42370.0,42369.0,0.03096981]
[1644770900561,0.65750616,42370.0,42369.0,0.03096981]
[1644770900762,0.91822543,42370.0,42369.0,0.03096981]
[1644770905957,0.81822543,42370.0,42369.0,0.03096981]
[1644770906756,0.81822543,42370.0,42369.0,0.01596981]
[1644770906955,0.86822543,42370.0,42369.0,0.01596981]
[1644770907160,0.91822543,42370.0,42369.0,0.01596981]
[1644770907358,0.61002743,42370.0,42369.0,0.01596981]
[1644770907756,0.44930816,42370.0,42369.0,0.01596981]
[1644770909443,0.75676375,42370.0,42369.0,0.01596981]
[1644770909843,1.01748302,42370.0,42369.0,1.456e-05]
[1644770910047,1.01748302,42370.0,42360.0,5.91e-06]
[1644770910048,0.14830435,42368.0,42360.0,5.91e-06]
[1644770910245,0.05,42361.0,42360.0,5.91e-06]
[1644770910446,0.0973,42361.0,42347.0,0.0248]
[1644770910648,0.1473,42361.0,42347.0,0.0248]
[1644770910846,0.24243454,42349.0,42347.0,0.3248]
[1644770911045,0.25884582,42353.0,42352.0,0.29360686]
[1644770911451,0.31790682,42353.0,42352.0,0.29360686]
[1644770912957,0.36520682,42353.0,42352.0,0.29360686]
[1644770915059,0.36520682,42353.0,42352.0,0.29418292]
[1644770915659,0.6487089,42353.0,42352.0,0.29418292]
[1644770915860,0.73323366,42353.0,42352.0,0.29418292]
[1644770916907,0.89395293,42353.0,42352.0,0.29418292]
[1644770917215,0.73323366,42353.0,42352.0,0.29418292]
[1644770917808,0.41520682,42353.0,42352.0,0.29418292]
[1644770918209,0.46520682,42353.0,42352.0,0.29418292]
[1644770918410,0.61520682,42353.0,42352.0,0.29418292]
[1644770918611,0.61020682,42353.0,42352.0,0.29418292]
[1644770920672,0.930232,42353.0,42352.0,0.29418292]
[1644770921068,1.09095127,42353.0,42352.0,0.29418292]
[1644770921672,0.84271995,42353.0,42352.0,0.29418292]
[1644770922071,0.68200068,42353.0,42352.0,0.29418292]
[1644770922669,0.77092609,42353.0,42352.0,0.29418292]
[1644770923272,0.56020682,42353.0,42352.0,0.29418292]
[1644770923905,0.55631559,42353.0,42352.0,0.29418292]
[1644770924708,0.45631559,42353.0,42352.0,0.29418292]
[1644770926410,0.36520682,42353.0,42352.0,0.29418292]
[1644770926609,0.65533839,42353.0,42352.0,0.29418292]
[1644770927409,0.81605766,42353.0,42352.0,0.29418292]
[1644770927675,0.65533839,42353.0,42352.0,0.29418292]
[1644770927878,0.36520682,42353.0,42352.0,0.29418292]
[1644770928676,0.106361,42353.0,42352.0,0.29418292]
[1644770929478,0.059061,42353.0,42352.0,0.29418292]
[1644770930476,0.059061,42353.0,42352.0,0.2941829]
[1644770933712,0.0999,42355.0,42352.0,0.2941829]
[1644770933916,0.233407,42360.0,42352.0,0.2941829]
[1644770933917,0.5613,42369.0,42353.0,0.3]
[1644770934111,0.5613,42369.0,42353.0,0.30057604]
[1644770934112,0.16077034,42364.0,42353.0,0.30057604]
[1644770934314,0.0999,42367.0,42353.0,0.30057604]
[1644770934710,0.0999,42367.0,42358.0,0.07388533]
[1644770934711,0.23574104,42365.0,42358.0,0.07388533]
[1644770935064,0.23574104,42365.0,42358.0,0.00057604]
[1644770935065,0.059044,42362.0,42358.0,0.00057604]
[1644770935262,0.059044,42362.0,42359.0,0.00039087]
[1644770935460,0.118091,42362.0,42359.0,0.00096691]
[1644770936260,0.118091,42362.0,42359.0,0.08519572]
[1644770936662,0.059044,42362.0,42359.0,0.08519572]
[1644770937960,0.059044,42362.0,42359.0,0.00057604]
[1644770939012,0.177136,42362.0,42359.0,0.00057604]
[1644770939213,0.059046,42361.0,42359.0,0.00057604]
[1644770939613,0.35383004,42365.0,42359.0,0.00057604]
[1644770939817,0.23574104,42365.0,42359.0,0.00057604]
[1644770940016,0.16077034,42367.0,42359.0,0.00057604]
[1644770940017,0.21981034,42367.0,42359.0,0.00057604]
[1644770940216,0.16077034,42370.0,42360.0,0.00039087]
[1644770940417,0.16077034,42370.0,42361.0,0.059024]
[1644770940614,0.00023441,42374.0,42362.0,0.3]
[1644770940816,0.00023441,42374.0,42362.0,0.00057604]
[1644770941016,0.26238511,42366.0,42362.0,0.00057604]
[1644770941415,0.26409326,42368.0,42366.0,0.27351355]
[1644770941616,0.26409326,42368.0,42366.0,0.27408959]
[1644770942420,0.059035,42369.0,42366.0,0.27408959]
[1644770942673,0.00023441,42372.0,42366.0,0.27408959]
[1644770942674,0.05926641,42372.0,42366.0,0.27408959]
[1644770942873,0.059032,42372.0,42366.0,0.27408959]
[1644770943174,0.059036,42370.0,42366.0,0.27408959]
[1644770943673,0.059036,42370.0,42366.0,0.27347492]
[1644770943674,0.118075,42369.0,42366.0,0.27347492]
[1644770943873,0.24177831,42367.0,42366.0,0.2734749]
[1644770945081,0.30081731,42367.0,42366.0,0.2734749]
[1644770946077,0.50704716,42367.0,42366.0,0.27347488]
[1644770946324,0.37892645,42367.0,42366.0,0.27347488]
[1644770946523,0.30081731,42367.0,42366.0,0.27347488]
[1644770947427,0.54211362,42367.0,42366.0,0.27347488]
[1644770948626,0.61165479,42367.0,42366.0,0.27347488]
[1644770949029,0.61165479,42367.0,42366.0,0.03141998]
[1644770949228,0.65895479,42367.0,42366.0,0.03141998]
[1644770952265,0.75895479,42367.0,42366.0,0.03141998]
[1644770952466,1.059055,42366.0,42364.0,0.00039567]
[1644770952669,0.0473,42365.0,42364.0,0.00077975]
[1644770953063,0.0473,42365.0,42364.0,0.00038408]
[1644770964418,1.0,42364.0,42352.0,0.28938662]
[1644770964620,0.059056,42360.0,42352.0,0.28938662]
[1644770964819,0.059056,42358.0,42352.0,0.2895292]
[1644770965360,0.059056,42358.0,42352.0,0.28938662]
[1644770965361,0.106356,42358.0,42352.0,0.28938662]
[1644770965560,0.225386,42357.0,42352.0,0.28938662]
[1644770965766,0.059056,42356.0,42352.0,0.28938662]
[1644770965961,0.118112,42356.0,42352.0,0.28938662]
[1644770967162,0.059056,42355.0,42352.0,0.28938662]
[1644770967361,0.118112,42355.0,42352.0,0.28938662]
[1644770968263,0.177168,42355.0,42352.0,0.28938662]
[1644770968462,0.118112,42354.0,42352.0,0.28938662]
[1644770971613,0.118116,42355.0,42354.0,0.23622399]
[1644770972662,0.165416,42355.0,42354.0,0.23622399]
[1644770974666,0.16502365,42355.0,42354.0,0.23622399]
[1644770975266,0.0999,42358.0,42354.0,0.23622399]
[1644770976068,0.0999,42358.0,42354.0,0.23661966]
[1644770976308,0.0999,42358.0,42357.0,0.23069242]
[1644770976708,0.0999,42358.0,42354.0,0.23661966]
[1644770977211,0.0999,42358.0,42354.0,0.23622399]
[1644770977409,0.0999,42358.0,42354.0,0.23661966]
[1644770977609,0.059049,42357.0,42354.0,0.23661966]
[1644770978411,0.059049,42357.0,42354.0,0.23622399]
[1644770979612,0.0999,42358.0,42354.0,0.23622399]
[1644770980876,0.0999,42358.0,42354.0,0.23661966]
[1644770981870,0.0999,42358.0,42354.0,0.23622399]
[1644770982068,0.0999,42358.0,42354.0,0.23661966]
[1644770982268,0.0999,42358.0,42355.0,0.2628817]
[1644770986014,0.0899,42358.0,42355.0,0.2628817]
[1644770986417,0.059043,42361.0,42355.0,0.2628817]
[1644770987016,0.059043,42361.0,42356.0,0.00039566]
[1644770987217,0.059043,42361.0,42356.0,0.0006518]
[1644770987962,0.059043,42361.0,42356.0,0.00025614]
[1644770988166,0.05904,42362.0,42356.0,0.00065179]
[1644770989164,0.05904,42362.0,42356.0,0.00025614]
[1644770989365,0.05904,42362.0,42357.0,0.00039565]
[1644770989564,0.05904,42362.0,42361.0,0.23033556]
[1644770989766,0.05904,42362.0,42361.0,0.2305917]
[1644770991515,0.05904,42362.0,42361.0,0.00025614]
[1644770992719,1.0,42361.0,42350.0,0.2510419]
[1644770992917,1.0,42361.0,42347.0,0.22563352]
[1644770992918,1.0,42359.0,42347.0,0.22563352]
[1644770993114,0.4175,42353.0,42348.0,0.00014258]
[1644770993315,0.4175,42353.0,42344.0,0.00014258]
[1644770993316,0.4175,42349.0,42344.0,0.00014258]
[1644770993515,0.4175,42349.0,42343.0,0.00014258]
[1644770993516,0.4175,42346.0,42343.0,0.00014258]
[1644770993716,0.4175,42346.0,42342.0,0.03]
[1644770993717,0.0897,42343.0,42342.0,0.03]
[1644770993914,0.137,42343.0,42342.0,0.03]
[1644770994118,0.314248,42343.0,42342.0,0.03]
[1644770994313,0.224548,42343.0,42342.0,0.03]
[1644770994515,0.324548,42343.0,42342.0,0.03]
[1644770994915,0.224548,42343.0,42342.0,0.03]
[1644770995572,0.50849996,42343.0,42342.0,0.03]
[1644771000216,0.70849996,42343.0,42342.0,0.03]
[1644771000614,0.424548,42343.0,42342.0,0.03]
[1644771001217,0.224548,42343.0,42342.0,0.03]